bitfinex-derivatives/quotes_SOLF0:USTF0_20250731
["timestamp","ask_amount","ask_price","bid_price","bid_amount"]
[1753997547878,2.52,175.3,175.27,3.32]
[1753997548083,5.706,175.28,175.27,3.32]
[1753997548282,2.52,175.29,175.23,7.356062]
[1753997548488,2.52,175.29,175.28,3.32]
[1753997548886,8.2256,175.29,175.28,3.32]
[1753997549190,2.52,175.32,175.28,3.32]
[1753997549389,5.7049,175.32,175.29,3.32]
[1753997549784,2.52,175.34,175.29,3.32]
[1753997550083,2.52,175.34,175.27,7.356062]
[1753997550084,7.28595146,175.34,175.28,3.32]
[1753997550289,4.76595146,175.34,175.28,3.32]
[1753997550586,8.2248,175.32,175.28,5.7057]
[1753997550786,8.2248,175.32,175.3,3.32]
[1753997550984,4.76595146,175.34,175.3,5.7051]
[1753997551192,2.52,175.33,175.31,3.32]
[1753997551383,2.52,175.33,175.29,7.356062]
[1753997551584,8.2245,175.33,175.32,3.32]
[1753997551786,2.52,175.33,175.3,3.32]
[1753997551985,2.52,175.33,175.31,3.32]
[1753997552190,8.2246,175.33,175.31,3.32]
[1753997552887,8.2246,175.33,175.32,3.32]
[1753997553189,4.76595146,175.36,175.32,3.32]
[1753997553190,8.224,175.34,175.32,3.32]
[1753997553585,5.7043,175.33,175.32,3.32]
[1753997554483,8.2241,175.34,175.29,7.356062]
[1753997554686,5.7041,175.34,175.33,3.32]
[1753997554990,5.7045,175.33,175.29,7.356062]
[1753997555191,5.7045,175.33,175.32,3.32]
[1753997556389,4.76595146,175.37,175.31,7.356062]
[1753997556689,7.28595146,175.37,175.32,9.0244]
[1753997556886,4.76595146,175.37,175.32,3.32]
[1753997557092,4.76595146,175.37,175.31,7.356062]
[1753997557292,5.7042,175.34,175.33,3.32]
[1753997557894,8.2237,175.35,175.33,3.32]
[1753997558094,5.7037,175.35,175.34,3.32]
[1753997558596,5.7034,175.36,175.31,7.356062]
[1753997558787,5.7034,175.36,175.35,3.32]
[1753997559092,7.28595146,175.37,175.35,3.32]
[1753997559295,2.52,175.37,175.31,3.32]
[1753997559491,4.76595146,175.37,175.31,3.32]
[1753997559691,2.52,175.33,175.32,3.32]
[1753997559886,2.52,175.33,175.31,3.32]
[1753997560092,2.52,175.33,175.32,3.32]
[1753997560292,8.2245,175.33,175.32,3.32]
[1753997560595,4.76595146,175.36,175.32,3.32]
[1753997560984,8.2241,175.34,175.32,3.32]
[1753997561195,8.2241,175.34,175.33,3.32]
[1753997561388,7.28595146,175.36,175.33,3.32]
[1753997561592,8.2239,175.35,175.31,5.7048]
[1753997561789,8.2239,175.35,175.33,3.32]
[1753997561991,8.2239,175.35,175.32,3.32]
[1753997562594,5.7034,175.36,175.32,3.32]
[1753997563189,5.7031,175.37,175.34,3.32]
[1753997563395,7.28595146,175.38,175.34,3.32]
[1753997563896,5.7033,175.37,175.35,3.32]
[1753997564195,5.7033,175.37,175.36,3.32]
[1753997566197,4.76595146,175.39,175.36,3.32]
[1753997566397,7.28595146,175.39,175.36,3.32]
[1753997566998,5.7029,175.38,175.36,3.32]
[1753997567196,5.7029,175.38,175.37,3.32]
[1753997568397,4.76595146,175.4,175.37,3.32]
[1753997568600,4.76595146,175.41,175.37,3.32]
[1753997568794,7.28595146,175.41,175.37,7.82728145]
[1753997568996,6.38148448,175.43,175.32,4.50728145]
[1753997568997,4.76595146,175.43,175.4,3.32]
[1753997569197,2.52,175.41,175.4,3.32]
[1753997569494,8.2217,175.41,175.4,3.32]
[1753997569800,2.52,175.41,175.36,3.32]
[1753997570198,2.52,175.39,175.38,3.32]
[1753997570598,5.7023,175.4,175.36,5.7031]
[1753997570898,8.2223,175.4,175.39,3.32]
[1753997571396,5.7026,175.39,175.36,5.7031]
[1753997571597,2.52,175.39,175.34,3.32]
[1753997572002,4.76595146,175.41,175.35,4.50728145]
[1753997572302,7.28595146,175.43,175.39,4.50728145]
[1753997572499,4.76595146,175.44,175.4,3.32]
[1753997572697,7.28595146,175.44,175.4,3.32]
[1753997573095,2.52,175.43,175.38,7.34316185]
[1753997573299,5.7016,175.42,175.41,3.32]
[1753997576313,5.7011,175.43,175.41,3.32]
[1753997576909,4.76595146,175.45,175.38,7.34316185]
[1753997577108,7.28595146,175.46,175.41,7.34316185]
[1753997577310,4.76595146,175.46,175.42,3.32]
[1753997577511,5.7006,175.45,175.42,3.32]
[1753997579216,5.7009,175.44,175.42,3.32]
[1753997579912,5.7009,175.44,175.36,3.17]
[1753997579913,2.52,175.44,175.36,3.17]
[1753997580309,5.7018,175.41,175.39,3.17]
[1753997580509,5.7018,175.41,175.35,7.34316185]
[1753997580819,2.52,175.41,175.35,3.17]
[1753997581219,2.52,175.41,175.36,5.7033]
[1753997581421,2.52,175.4,175.37,3.17]
[1753997581623,2.52,175.42,175.37,3.17]
[1753997581920,2.52,175.41,175.34,7.34316185]
[1753997582116,7.34316185,175.39,175.35,3.17]
[1753997582322,2.52,175.38,175.3,3.17]
[1753997582720,5.7036,175.36,175.32,5.7045]
[1753997582923,5.7036,175.36,175.33,3.17]
[1753997583123,2.52,175.38,175.33,3.17]
[1753997583322,5.7039,175.35,175.31,5.7048]
[1753997583523,5.7039,175.35,175.32,3.17]
[1753997583920,5.7039,175.35,175.32,5.7045]
[1753997584223,8.2235,175.36,175.33,3.17]
[1753997584420,2.52,175.38,175.34,3.17]
[1753997584925,5.7034,175.36,175.33,5.704]
[1753997585234,2.52,175.38,175.35,3.17]
[1753997585422,5.7034,175.36,175.29,7.34316185]
[1753997585926,5.7034,175.36,175.3,3.17]
[1753997586120,5.7034,175.36,175.33,5.7041]
[1753997586317,5.7034,175.36,175.34,3.17]
[1753997586522,2.52,175.43,175.36,3.17]
[1753997586824,2.52,175.43,175.39,3.17]
[1753997587027,4.76595146,175.46,175.42,7.34316185]
[1753997587223,2.52,175.48,175.43,3.17]
[1753997587421,2.52,175.47,175.43,3.17]
[1753997587927,5.7007,175.45,175.44,3.17]
[1753997588127,2.52,175.47,175.45,3.17]
[1753997588421,5.7,175.47,175.45,3.17]
[1753997588624,5.7,175.47,175.46,3.17]
[1753997588824,2.52,175.49,175.47,3.17]
[1753997589025,2.51,175.5,175.45,3.17]
[1753997589226,2.51,175.49,175.44,7.34316185]
[1753997589523,5.6997,175.48,175.47,3.17]
[1753997590421,8.2093,175.49,175.47,3.17]
[1753997591225,8.2093,175.49,175.48,3.17]
[1753997592329,8.2093,175.49,175.46,3.17]
[1753997592330,5.6999,175.47,175.46,3.17]
[1753997592522,2.51,175.48,175.46,3.17]
[1753997592918,5.6992,175.49,175.43,3.17]
[1753997593330,5.6992,175.49,175.45,5.7002]
[1753997593524,8.2092,175.49,175.46,3.17]
[1753997593729,8.2092,175.49,175.47,3.17]
[1753997594230,8.2092,175.49,175.48,3.17]
[1753997594928,5.6988,175.5,175.43,7.34316185]
[1753997595228,2.51,175.51,175.5,3.17]
[1753997595619,8.2088,175.51,175.5,3.17]
[1753997596127,2.51,175.5,175.49,3.17]
[1753997596323,8.2088,175.5,175.49,3.17]
[1753997596519,4.76595146,175.53,175.49,3.17]
[1753997596719,4.76595146,175.53,175.45,3.17]
[1753997596720,2.51,175.53,175.45,3.17]
[1753997596929,8.209,175.5,175.45,3.17]
[1753997597123,8.209,175.5,175.45,8.8702]
[1753997597325,8.209,175.5,175.46,3.17]
[1753997597527,2.51,175.5,175.46,3.17]
[1753997597725,2.51,175.52,175.47,3.17]
[1753997597924,2.51,175.51,175.47,3.17]
[1753997598121,5.699,175.5,175.47,3.17]
[1753997598325,8.209,175.5,175.46,3.17]
[1753997598526,2.51,175.49,175.47,3.17]
[1753997598731,5.6997,175.48,175.47,3.17]
[1753997603838,2.51,175.52,175.47,3.17]
[1753997604741,5.699,175.5,175.47,3.17]
[1753997604940,2.51,175.52,175.47,3.17]
[1753997605233,2.51,175.53,175.47,3.17]
[1753997605431,5.6993,175.49,175.47,3.17]
[1753997606729,12.10911331,175.54,175.47,3.17]
[1753997606730,5.6989,175.5,175.47,3.17]
[1753997606934,4.50334315,175.53,175.47,7.67334315]
[1753997606935,2.51,175.53,175.47,7.67334315]
[1753997607136,2.51,175.53,175.48,3.17]
[1753997607334,5.6985,175.52,175.48,5.6994]
[1753997607527,5.6985,175.52,175.49,3.17]
[1753997607932,2.51,175.5,175.38,108.91]
[1753997608133,2.51,175.54,175.47,3.17]
[1753997608538,2.51,175.54,175.49,3.21]
[1753997609338,5.6979,175.53,175.49,3.21]
[1753997609642,2.51,175.54,175.49,3.21]
[1753997609936,2.51,175.54,175.5,4.50334315]
[1753997610240,8.2077,175.54,175.51,3.21]
[1753997610837,5.6979,175.53,175.51,3.21]
[1753997611640,8.2076,175.54,175.51,3.21]
[1753997612434,5.6972,175.55,175.54,3.21]
[1753997612638,8.2072,175.55,175.54,3.21]
[1753997612833,4.76595146,175.59,175.54,3.21]
[1753997612834,2.51,175.57,175.54,3.21]
[1753997613141,2.51,175.57,175.55,3.21]
[1753997613542,8.2071,175.56,175.55,3.21]
[1753997613942,2.51,175.55,175.54,3.21]
[1753997614546,8.2074,175.55,175.54,3.21]
[1753997615044,5.6974,175.55,175.54,3.21]
[1753997615938,8.2079,175.53,175.52,3.21]
[1753997616545,5.6987,175.51,175.5,3.21]
[1753997617043,5.6995,175.48,175.42,44.0]
[1753997617257,5.6995,175.48,175.38,126.92721683]
[1753997617258,2.51,175.49,175.41,4.50334315]
[1753997617444,7.01334315,175.48,175.44,5.7007]
[1753997617645,2.51,175.52,175.45,3.21]
[1753997617949,4.50334315,175.47,175.41,3.21]
[1753997618142,4.76595146,175.53,175.41,3.21]
[1753997618143,7.01334315,175.45,175.41,3.21]
[1753997618644,5.7008,175.44,175.41,3.21]
[1753997618842,4.50334315,175.43,175.35,4.50334315]
[1753997619141,2.51,175.42,175.4,3.21]
[1753997619346,5.7017,175.41,175.4,3.21]
[1753997620234,8.2115,175.42,175.4,3.21]
[1753997620440,8.2115,175.42,175.41,3.21]
[1753997620441,5.7015,175.42,175.41,3.21]
[1753997621842,5.7021,175.4,175.36,5.7033]
[1753997622047,5.7021,175.4,175.37,3.21]
[1753997623246,8.2119,175.41,175.38,3.21]
[1753997623746,5.7021,175.4,175.38,3.21]
[1753997628243,2.51,175.39,175.35,3.21]
[1753997628748,2.51,175.38,175.33,3.21]
[1753997629151,2.51,175.38,175.34,3.21]
[1753997629346,8.2129,175.38,175.34,3.21]
[1753997629546,2.51,175.38,175.34,3.21]
[1753997630248,2.51,175.37,175.34,3.21]
[1753997630444,7.34656815,175.41,175.34,3.21]
[1753997630650,4.15202564,175.4,175.35,5.7035]
[1753997630850,4.15202564,175.39,175.36,3.21]
[1753997631153,2.51,175.42,175.37,3.21]
[1753997631448,2.51,175.4,175.33,3.21]
[1753997631639,11.49895605,175.41,175.33,3.21]
[1753997631640,2.51,175.38,175.33,3.21]
[1753997632043,2.51,175.38,175.32,3.21]
[1753997632441,5.7041,175.34,175.32,3.21]
[1753997632645,2.51,175.35,175.32,3.21]
[1753997633348,5.7042,175.34,175.32,3.21]
[1753997635042,7.34656815,175.37,175.26,3.21]
[1753997635246,2.51,175.35,175.26,3.21]
[1753997635453,4.14449294,175.34,175.26,3.21]
[1753997635752,5.705,175.31,175.27,3.21]
[1753997636154,5.7048,175.32,175.27,3.21]
[1753997636853,8.2148,175.32,175.27,3.21]
[1753997637351,4.58,175.31,175.28,3.21]
[1753997638244,12.7951,175.31,175.27,3.21]
[1753997638447,7.1,175.31,175.25,3.29]
[1753997638848,4.58,175.31,175.25,3.29]
[1753997639248,2.52,175.29,175.25,3.29]
[1753997639442,8.2259,175.29,175.25,3.29]
[1753997640056,4.58,175.31,175.26,3.29]
[1753997640355,4.58,175.31,175.28,3.29]
[1753997640549,4.58,175.31,175.27,7.34656815]
[1753997640855,4.58,175.31,175.3,10.63656815]
[1753997641255,4.58,175.31,175.3,16.34186815]
[1753997642252,4.6,175.38,175.33,5.7042]
[1753997642454,3.07,175.37,175.34,3.29]
[1753997642850,3.07,175.37,175.36,3.29]
[1753997643355,8.773,175.37,175.36,3.29]
[1753997643954,8.7737,175.36,175.33,3.29]
[1753997644155,3.07,175.37,175.32,4.5085541]
[1753997644359,3.07,175.37,175.31,3.29]
[1753997644752,5.704,175.35,175.32,3.29]
[1753997644952,3.07,175.33,175.32,3.29]
[1753997645649,3.07,175.37,175.33,3.29]
[1753997645849,3.07,175.36,175.33,3.29]
[1753997646156,3.07,175.36,175.35,3.29]
[1753997646746,8.7734,175.36,175.35,3.29]
[1753997646948,3.07,175.36,175.35,3.29]
[1753997650254,2.08,175.38,175.35,3.29]
[1753997650556,2.08,175.38,175.37,7.7985541]
[1753997653060,3.07,175.37,175.34,3.29]
[1753997653261,3.07,175.36,175.35,3.29]
[1753997654167,8.7734,175.36,175.35,3.29]
[1753997654560,2.08,175.38,175.33,3.29]
[1753997654769,5.704,175.34,175.31,3.29]
[1753997654960,3.07,175.33,175.32,3.29]
[1753997656469,4.5085541,175.37,175.32,4.5085541]
[1753997656470,3.07,175.37,175.32,4.5085541]
[1753997656673,3.07,175.36,175.33,3.29]
[1753997656858,5.7042,175.34,175.3,115.9338541]
[1753997657063,8.7742,175.34,175.3,115.9338541]
[1753997657466,8.7742,175.34,175.31,3.29]
[1753997658171,3.07,175.34,175.33,3.29]
[1753997659771,8.774,175.34,175.33,3.29]
[1753997660869,5.7045,175.33,175.31,7.7985541]
[1753997661070,8.7745,175.33,175.32,3.29]
[1753997662170,8.7745,175.33,175.31,4.5085541]
[1753997662171,3.07,175.32,175.26,4.5085541]
[1753997662373,3.07,175.32,175.27,3.29]
[1753997662571,3.07,175.3,175.28,3.29]
[1753997662775,4.15031137,175.29,175.25,3.29]
[1753997663072,3.07,175.27,175.26,3.29]
[1753997663470,3.07,175.29,175.24,110.2085541]
[1753997663672,5.16,175.3,175.28,3.29]
[1753997663874,4.1507635,175.29,175.26,5.7066]
[1753997664072,3.07,175.29,175.28,3.29]
[1753997664378,7.22043581,175.29,175.28,3.29]
[1753997664871,12.92603581,175.29,175.28,3.29]
[1753997665180,12.92603581,175.29,175.26,3.29]
[1753997665366,3.07,175.28,175.27,3.29]
[1753997665571,8.776,175.28,175.27,3.29]
[1753997665766,3.07,175.29,175.25,3.29]
[1753997665967,4.15001005,175.28,175.25,3.29]
[1753997666176,8.7766,175.26,175.25,3.29]
[1753997667678,3.07,175.24,175.23,109.01]
[1753997668172,3.07,175.24,175.23,105.72]
[1753997668372,4.5085541,175.27,175.21,3.29]
[1753997668572,3.23,175.25,175.21,3.29]
[1753997668975,4.5085541,175.26,175.21,3.29]
[1753997669176,7.37777863,175.25,175.22,3.29]
[1753997669376,5.7075,175.24,175.22,3.29]
[1753997669577,3.23,175.23,175.22,3.29]
[1753997669974,7.99595146,175.29,175.23,3.29]
[1753997670174,4.14603249,175.28,175.24,4.5085541]
[1753997670369,3.23,175.29,175.25,5.7069]
[1753997670578,9.8516565,175.28,175.27,3.29]
[1753997670779,13.0816565,175.28,175.27,3.29]
[1753997671986,5.7063,175.27,175.25,3.29]
[1753997672183,8.9363,175.27,175.26,3.29]
[1753997672890,3.23,175.27,175.26,3.29]
[1753997673683,5.32,175.3,175.26,3.29]
[1753997673883,4.148271,175.29,175.26,3.29]
[1753997674083,5.32,175.3,175.26,3.29]
[1753997674284,5.7059,175.29,175.26,10.2149541]
[1753997674490,5.7059,175.29,175.27,3.29]
[1753997674790,5.7059,175.29,175.28,3.29]
[1753997674987,8.9359,175.29,175.28,3.29]
[1753997678189,8.9355,175.3,175.29,3.29]
[1753997679087,7.23,175.31,175.26,4.5085541]
[1753997679387,10.46,175.31,175.3,3.29]
[1753997680185,16.165,175.31,175.3,3.29]
[1753997680590,20.26464602,175.31,175.3,3.29]
[1753997680791,8.9357,175.29,175.28,3.29]
[1753997680988,3.23,175.3,175.24,4.5085541]
[1753997681181,3.23,175.3,175.23,3.29]
[1753997681381,5.7066,175.27,175.24,5.7072]
[1753997681584,3.23,175.26,175.25,3.29]
[1753997681983,3.23,175.28,175.25,3.29]
[1753997682186,3.23,175.29,175.25,3.29]
[1753997682391,5.7063,175.27,175.26,3.29]
[1753997682787,8.9363,175.27,175.26,3.29]
[1753997683288,5.7061,175.28,175.26,3.29]
[1753997683697,8.9361,175.28,175.27,3.29]
[1753997684086,3.23,175.28,175.27,3.29]
[1753997684292,3.23,175.3,175.27,3.29]
[1753997685090,8.9355,175.3,175.27,5.7062]
[1753997685292,8.9355,175.3,175.28,3.29]
[1753997685800,3.23,175.3,175.29,3.29]
[1753997687791,8.9353,175.3,175.29,3.29]
[1753997688694,3.23,175.29,175.27,3.29]
[1753997688898,3.23,175.29,175.26,3.29]
[1753997689597,3.23,175.28,175.26,3.29]
[1753997689801,3.23,175.27,175.26,3.29]
[1753997689993,3.23,175.3,175.26,8.9966]
[1753997690295,3.23,175.29,175.27,3.29]
[1753997690800,3.23,175.29,175.28,3.29]
[1753997691701,8.9356,175.29,175.28,3.29]
[1753997691999,3.23,175.26,175.23,3.29]
[1753997692302,3.23,175.25,175.24,3.29]
[1753997693299,4.5085541,175.28,175.23,3.29]
[1753997693498,5.7072,175.25,175.23,3.29]
[1753997693697,4.5085541,175.28,175.2,4.5085541]
[1753997694002,3.23,175.23,175.22,3.29]
[1753997694597,3.23,175.24,175.23,3.29]
[1753997695192,5.707,175.25,175.23,3.29]
[1753997695397,3.23,175.25,175.24,3.29]
[1753997696401,8.9364,175.27,175.24,3.29]
[1753997696800,5.7064,175.27,175.24,3.29]
[1753997696997,3.23,175.26,175.24,3.29]
[1753997697302,7.23,175.31,175.24,4.5085541]
[1753997697500,3.23,175.28,175.25,3.29]
[1753997697898,7.23,175.31,175.25,3.29]
[1753997698098,4.09990367,175.3,175.26,4.5085541]
[1753997698399,3.29,175.3,175.26,4.5085541]
[1753997698600,3.29,175.3,175.29,3.27]
[1753997699304,7.39313111,175.3,175.29,3.27]
[1753997699602,4.10313111,175.3,175.27,3.27]
[1753997699797,16.2251,175.31,175.28,5.7058]
[1753997700002,16.2251,175.31,175.29,3.27]
[1753997700003,4.10313111,175.3,175.29,3.27]
[1753997701000,7.39495316,175.3,175.29,3.27]
[1753997701305,3.29,175.29,175.28,7.7785541]
[1753997704202,7.39882026,175.29,175.28,7.7785541]
[1753997708217,13.10442026,175.29,175.28,3.27]
[1753997711821,3.29,175.28,175.27,3.27]
[1753997712115,7.39882026,175.28,175.27,3.27]
[1753997717126,13.10482026,175.28,175.27,3.27]
[1753997717521,4.10882026,175.28,175.24,4.5085541]
[1753997717725,3.29,175.26,175.25,3.27]
[1753997718726,3.29,175.26,175.25,8.9769]
[1753997721424,3.29,175.26,175.24,10.2157541]
[1753997721626,3.29,175.26,175.24,3.27]
[1753997723130,3.29,175.24,175.2,110.1685541]
[1753997723325,4.5085541,175.28,175.2,110.1685541]
[1753997723530,3.29,175.23,175.2,110.1685541]
[1753997723733,3.29,175.23,175.22,5.7076]
[1753997723926,3.29,175.23,175.21,3.27]
[1753997724230,4.5085541,175.28,175.2,105.66]
[1753997724434,10.54,175.23,175.21,3.27]
[1753997724624,3.29,175.22,175.21,3.27]
[1753997725222,3.29,175.22,175.21,8.9782]
[1753997725632,3.29,175.22,175.21,3.27]
[1753997727235,9.34,175.23,175.21,8.9782]
[1753997727430,9.34,175.23,175.22,7.7785541]
[1753997728435,9.34,175.23,175.22,13.4864541]
[1753997730731,6.0,175.23,175.22,13.4864541]
[1753997730939,8.03807747,175.32,175.27,5.7062]
[1753997731134,3.26,175.3,175.26,4.5085541]
[1753997731336,4.11092845,175.29,175.26,4.5085541]
[1753997731535,7.37092845,175.28,175.26,4.5085541]
[1753997731737,3.26,175.27,175.25,105.64]
[1753997732641,3.26,175.26,175.21,4.5085541]
[1753997732938,3.26,175.26,175.22,105.64]
[1753997733444,3.26,175.26,175.23,5.7075]
[1753997733843,3.26,175.26,175.22,105.64]
[1753997734343,3.26,175.25,175.22,105.64]
[1753997735241,3.26,175.25,175.24,5.7072]
[1753997746744,5.7066,175.26,175.24,5.7072]
[1753997746952,3.26,175.26,175.25,5.7069]
[1753997747852,3.26,175.26,175.24,10.2156541]
[1753997748248,8.9667,175.26,175.24,10.2156541]
[1753997748451,3.26,175.25,175.24,10.2156541]
[1753997751557,3.26,175.25,175.23,5.7075]
[1753997752453,3.26,175.25,175.24,5.7073]
[1753997755259,3.26,175.24,175.23,5.7076]
[1753997756762,3.26,175.24,175.23,8.59718771]
[1753997757155,5.7076,175.23,175.22,105.64]
[1753997757463,4.13027751,175.23,175.2,108.44958771]
[1753997757662,4.13027751,175.22,175.2,108.44958771]
[1753997757851,2.88958771,175.24,175.2,108.44958771]
[1753997758162,4.12900339,175.23,175.2,105.56]
[1753997758464,4.12900339,175.22,175.2,105.56]
[1753997758655,2.88958771,175.24,175.2,105.56]
[1753997758852,4.12795799,175.23,175.2,105.56]
[1753997759154,2.88958771,175.24,175.2,105.56]
[1753997759155,5.7082,175.21,175.2,105.56]
[1753997759355,8.7782,175.21,175.2,105.56]
[1753997763366,3.07,175.21,175.17,6.9295]
[1753997763563,4.51782739,175.25,175.14,383.5]
[1753997763564,3.07,175.19,175.15,5.73782739]
[1753997763765,3.07,175.19,175.16,105.56]
[1753997764066,5.7091,175.19,175.16,105.56]
[1753997764271,3.07,175.18,175.16,105.56]
[1753997764771,3.07,175.18,175.16,111.2698]
[1753997764969,3.07,175.18,175.16,105.56]
[1753997765869,8.7793,175.18,175.16,105.56]
[1753997766268,3.07,175.17,175.16,105.56]
[1753997766965,8.7795,175.17,175.16,105.56]
[1753997767165,3.07,175.16,175.14,105.56]
[1753997767464,4.51782739,175.19,175.14,105.56]
[1753997767666,3.07,175.15,175.1,4.51782739]
[1753997767965,3.07,175.15,175.1,105.56]
[1753997768664,3.07,175.14,175.09,105.56]
[1753997769066,5.7115,175.11,175.09,105.56]
[1753997769264,3.07,175.1,175.09,105.56]
[1753997769867,3.07,175.1,175.09,111.2721]
[1753997770267,3.07,175.1,175.09,105.56]
[1753997771075,8.7818,175.1,175.09,105.56]
[1753997771264,3.07,175.1,175.03,4.51782739]
[1753997771463,3.07,175.1,174.96,48.51782739]
[1753997771673,3.07,175.1,174.93,410.41908789]
[1753997771674,5.7134,175.06,175.0,4.51782739]
[1753997771874,3.07,175.05,175.01,106.8]
[1753997772170,3.07,175.05,175.02,5.7142]
[1753997772476,8.7835,175.05,175.01,105.58]
[1753997772773,3.07,175.04,175.01,111.2947]
[1753997772974,3.07,175.04,175.01,105.58]
[1753997773670,3.07,175.04,175.02,5.7143]
[1753997774271,3.07,175.08,174.99,1.22]
[1753997774468,3.07,175.02,174.94,1.22]
[1753997774670,4.51782739,175.01,174.94,106.8]
[1753997774872,3.07,175.0,174.94,106.8]
[1753997775271,5.7162,174.97,174.94,105.58]
[1753997775474,3.07,174.96,174.94,105.58]
[1753997775671,3.07,174.95,174.91,5.73782739]
[1753997775870,3.07,174.95,174.92,111.3176]
[1753997776065,3.07,174.95,174.92,105.6]
[1753997776572,3.07,174.96,174.92,105.6]
[1753997776967,3.07,174.96,174.92,111.3176]
[1753997777578,8.7864,174.96,174.92,105.6]
[1753997777775,3.07,174.95,174.92,105.6]
[1753997778170,4.51782739,175.05,174.92,105.6]
[1753997778171,3.07,174.96,174.92,105.6]
[1753997778578,8.7865,174.96,174.92,105.6]
[1753997778778,3.07,174.95,174.92,105.6]
[1753997779276,3.07,174.94,174.92,105.6]
[1753997779772,3.07,174.94,174.93,1.22]
[1753997779973,3.07,174.96,174.92,105.6]
[1753997780177,3.07,174.96,174.94,6.9368]
[1753997780374,3.07,174.96,174.93,1.22]
[1753997780572,3.07,174.97,174.94,1.22]
[1753997780773,3.07,174.97,174.95,5.7164]
[1753997780973,3.07,174.97,174.95,1.22]
[1753997782180,3.07,174.96,174.95,6.9367]
[1753997782379,5.7153,175.0,174.93,4.51782739]
[1753997782580,3.07,174.99,174.93,5.73782739]
[1753997782780,3.07,174.99,174.95,5.7164]
[1753997782984,3.07,174.99,174.95,6.9364]
[1753997783283,8.7854,174.99,174.95,6.9364]
[1753997783580,3.07,174.98,174.95,6.9364]
[1753997785479,3.07,174.96,174.93,5.7173]
[1753997785785,3.07,174.96,174.92,1.22]
[1753997786184,3.07,174.94,174.92,1.22]
[1753997786385,3.07,174.93,174.92,1.22]
[1753997788087,3.07,174.92,174.9,106.9]
[1753997788488,3.16,174.91,174.9,112.618]
[1753997791489,3.16,174.93,174.91,5.718]
[1753997792693,5.7168,174.95,174.91,5.718]
[1753997792990,5.7165,174.96,174.91,4.51782739]
[1753997793190,3.16,174.94,174.92,1.23]
[1753997793790,3.16,174.94,174.93,5.7174]
[1753997795083,3.16,174.93,174.92,6.9476]
[1753997796293,3.16,174.94,174.92,5.7176]
[1753997796889,3.16,174.94,174.91,5.7179]
[1753997797292,8.8771,174.94,174.9,111.42782739]
[1753997797492,3.16,174.93,174.9,111.42782739]
[1753997798293,8.8774,174.93,174.9,111.42782739]
[1753997798598,3.16,174.91,174.9,111.42782739]